bitfinex/quotes_ETHUSD_20240703
["timestamp","ask_amount","ask_price","bid_price","bid_amount"]
[1720017392932,0.52198503,3319.7,3319.6,0.99850458]
[1720017394376,1.71153242,3319.7,3319.6,0.99850458]
[1720017395262,3.0,3319.8,3319.6,0.99850458]
[1720017395455,1.71170338,3319.7,3319.6,0.99850458]
[1720017396068,4.71170338,3319.7,3318.9,1.49850458]
[1720017396260,1.71170338,3319.6,3318.9,1.49850458]
[1720017396431,2.18287372,3319.5,3318.9,1.49850458]
[1720017396633,1.71170338,3319.4,3318.9,1.49850458]
[1720017396833,1.71170338,3319.3,3318.9,1.49850458]
[1720017397034,1.71170338,3319.2,3318.9,1.49850458]
[1720017397235,1.71170338,3319.1,3318.9,1.49850458]
[1720017397566,0.52203185,3319.0,3318.2,0.99850458]
[1720017397764,4.71210181,3319.0,3318.5,0.5]
[1720017397989,1.71210181,3318.9,3318.6,0.99850458]
[1720017398261,1.71210181,3318.8,3318.6,0.99850458]
[1720017398462,3.0,3319.0,3318.6,0.99850458]
[1720017398675,0.52214178,3318.7,3318.6,0.99850458]
[1720017400867,1.712151,3318.7,3318.6,0.99850458]
[1720017401042,0.52214178,3318.7,3318.6,0.99850458]
[1720017401443,1.71215578,3318.7,3318.6,0.99850458]
[1720017401857,3.0,3319.2,3318.8,0.99850458]
[1720017402073,1.71206397,3319.1,3318.8,0.99850458]
[1720017402278,3.0,3319.4,3318.9,0.5]
[1720017402570,3.75323262,3319.3,3318.9,0.5]
[1720017402774,4.71198831,3319.2,3318.9,0.5]
[1720017402969,3.0,3319.4,3319.0,0.99850458]
[1720017402970,4.71198831,3319.1,3319.0,0.99850458]
[1720017403194,1.71198831,3319.1,3319.0,0.99850458]
[1720017403473,1.71198831,3319.1,3319.0,1.84260504]
[1720017405070,1.1896752,3319.1,3319.0,1.84260504]
[1720017405238,1.71170822,3319.1,3319.0,1.84260504]
[1720017405751,1.71168987,3319.1,3319.0,1.84260504]
[1720017406742,1.1896752,3319.1,3319.0,1.84260504]
[1720017406963,3.0,3319.4,3319.2,1.49850458]
[1720017407163,1.71162149,3319.3,3319.2,1.73276508]
[1720017408489,1.71162149,3319.3,3319.2,1.23276508]
[1720017408490,1.7115415,3319.3,3319.2,1.23276508]
[1720017408693,1.7115415,3319.3,3319.2,1.49850458]
[1720017411175,1.7115415,3319.3,3319.2,0.99850458]
[1720017411581,1.7115415,3319.3,3319.2,1.49850458]
[1720017411776,1.71176448,3319.3,3319.2,1.49850458]
[1720017412166,1.71176448,3319.3,3319.2,0.99850458]
[1720017414982,1.71172822,3319.3,3319.2,0.99850458]
[1720017415470,0.52204254,3319.3,3319.2,0.99850458]
[1720017415668,1.71174773,3319.3,3319.2,0.99850458]
[1720017416623,0.52204254,3319.3,3319.2,0.99850458]
[1720017416825,0.52204254,3319.3,3319.0,0.99850458]
[1720017416976,1.18970519,3319.2,3318.8,0.99850458]
[1720017417300,3.75311761,3319.1,3318.8,0.99850458]
[1720017417517,3.75311761,3319.0,3318.8,0.99850458]
[1720017417684,3.75325445,3318.9,3318.8,0.99850458]
[1720017417889,3.75329993,3318.9,3318.8,0.99850458]
[1720017418309,3.75343808,3318.9,3318.8,0.99850458]
[1720017418513,1.71208964,3318.9,3318.8,0.99850458]
[1720017420821,1.71208964,3318.9,3318.6,0.99850458]
[1720017421031,1.71208756,3318.8,3318.6,0.99850458]
[1720017421318,1.71208756,3318.7,3318.6,0.99850458]
[1720017423320,3.75354316,3318.7,3318.4,0.99850458]
[1720017423622,4.71208756,3318.6,3318.4,0.99850458]
[1720017423829,1.71208756,3318.5,3318.4,0.99850458]
[1720017423995,1.71220302,3318.5,3318.3,0.5]
[1720017424197,1.19005077,3318.4,3318.3,0.5]
[1720017424397,1.19005077,3318.4,3318.1,1.49850458]
[1720017424398,1.71220302,3318.4,3318.1,1.49850458]
[1720017424724,1.71220302,3318.3,3318.1,1.49850458]
[1720017424978,1.71220302,3318.2,3318.1,1.49850458]
[1720017426993,1.71220302,3318.2,3318.1,8.73650458]
[1720017427208,1.71220302,3318.2,3318.1,9.61015504]
[1720017427518,0.52215172,3318.2,3318.1,9.61015504]
[1720017427721,3.0,3318.8,3318.6,1.49850458]
[1720017427925,1.71212026,3318.7,3318.6,1.49850458]
[1720017428595,1.71212026,3318.7,3318.6,0.99850458]
[1720017429027,3.0,3319.1,3318.6,0.99850458]
[1720017429223,5.02899684,3319.0,3318.6,0.99850458]
[1720017429400,6.75365684,3318.9,3318.5,0.99850458]
[1720017429592,3.75365684,3318.8,3318.3,0.99850458]
[1720017429820,13.72497841,3318.7,3318.3,0.99850458]
[1720017430029,6.75377841,3318.6,3318.3,0.99850458]
[1720017430198,3.75377841,3318.5,3318.3,0.99850458]
[1720017430399,3.0,3318.6,3318.3,0.99850458]
[1720017430400,1.71219716,3318.4,3318.3,0.99850458]
[1720017430635,3.0,3318.6,3318.3,0.99850458]
[1720017430805,0.52219733,3318.5,3318.3,0.99850458]
[1720017431015,0.52219733,3318.4,3318.3,0.99850458]
[1720017431313,0.52219733,3318.4,3317.6,0.5]
[1720017431314,9.50362061,3318.4,3317.6,0.5]
[1720017431521,9.50362061,3318.4,3316.8,0.99850458]
[1720017431522,3.0,3317.6,3316.8,0.99850458]
[1720017431747,3.7540858,3317.5,3316.8,0.99850458]
[1720017431950,3.7540858,3317.4,3317.3,0.99850458]
[1720017432398,3.0,3318.1,3317.3,1.83249504]
[1720017432608,1.71271112,3318.0,3317.3,1.83249504]
[1720017432807,9.5106,3318.8,3317.8,0.99850458]
[1720017432808,1.71271112,3317.9,3317.8,0.99850458]
[1720017433035,1.71271112,3317.9,3317.8,1.49850458]
[1720017433345,0.52227468,3317.9,3317.8,1.49850458]
[1720017433548,2.64713541,3318.7,3318.4,0.99850458]
[1720017433739,0.52217168,3318.6,3318.4,1.49850458]
[1720017434041,7.1232,3319.2,3318.4,1.49850458]
[1720017434042,1.71228368,3318.5,3318.4,1.49850458]
[1720017435439,1.71228368,3318.5,3318.4,0.99850458]
[1720017435845,1.71228368,3318.5,3318.4,1.49850458]
[1720017437113,1.71227303,3318.5,3318.4,1.49850458]
[1720017439858,0.52216912,3318.5,3318.4,1.49850458]
[1720017440051,1.71229221,3318.5,3318.4,1.49850458]
[1720017440256,10.32,3319.1,3318.4,1.49850458]
[1720017440426,0.5221737,3318.5,3318.4,1.49850458]
[1720017440769,7.32,3319.1,3318.8,0.99850458]
[1720017440938,0.52209859,3319.0,3318.8,0.99850458]
[1720017441122,0.52209859,3319.0,3318.8,1.49850458]
[1720017441123,0.52209859,3318.9,3318.8,1.49850458]
[1720017441457,1.71197169,3318.9,3318.8,1.49850458]
[1720017441650,1.71197169,3318.9,3318.8,0.99850458]
[1720017441964,1.71197169,3318.9,3318.8,1.49850458]
[1720017442876,1.71197169,3318.9,3318.8,8.87830458]
[1720017443170,1.71197169,3318.9,3318.8,9.76613504]
[1720017443470,1.71197169,3318.9,3318.8,1.49850458]
[1720017443678,1.71197169,3318.9,3318.6,1.49850458]
[1720017443970,1.71200145,3318.8,3318.6,1.49850458]
[1720017444266,1.71200145,3318.7,3318.6,1.49850458]
[1720017444668,1.71200145,3318.7,3318.5,0.5]
[1720017444845,1.71200145,3318.6,3318.5,0.5]
[1720017446553,3.0,3319.1,3318.5,0.5]
[1720017446740,0.5221416,3318.6,3318.5,0.5]
[1720017446940,1.71215882,3318.6,3318.5,0.5]
[1720017447359,1.71215882,3318.6,3318.4,0.99850458]
[1720017447595,1.71215882,3318.5,3318.4,0.99850458]
[1720017449992,3.0,3319.2,3318.5,0.5]
[1720017450216,4.35367799,3319.1,3318.5,0.5]
[1720017450511,6.75367799,3319.0,3318.5,0.5]
[1720017450660,3.23152431,3318.9,3318.5,0.5]
[1720017450860,3.52215368,3318.8,3318.5,0.5]
[1720017451088,1.71220889,3318.7,3318.3,0.5]
[1720017451291,4.22498914,3318.6,3318.3,0.5]
[1720017451508,1.71220889,3318.5,3318.3,0.5]
[1720017451669,1.71220889,3318.4,3318.3,0.5]
[1720017453063,0.52215368,3318.4,3318.3,0.5]
[1720017453292,1.71205743,3318.4,3318.3,0.5]
[1720017453610,1.18994026,3318.4,3318.2,0.99850458]
[1720017453841,1.71209284,3318.4,3318.3,0.5]
[1720017454103,2.90214741,3318.4,3318.3,0.5]
[1720017454765,1.71220715,3318.4,3318.3,0.5]
[1720017456304,1.71219161,3318.4,3318.3,0.5]
[1720017456602,1.71218571,3318.4,3318.3,0.5]
[1720017457703,1.71218571,3318.4,3318.3,0.5]
[1720017459600,0.5221644,3318.4,3318.3,0.5]
[1720017459966,0.5221644,3318.4,3318.2,0.99850458]
[1720017459967,1.71225345,3318.4,3318.2,0.99850458]
[1720017460209,1.71225345,3318.3,3318.2,0.99850458]
[1720017462884,1.71224104,3318.3,3318.2,0.99850458]
[1720017464503,0.52216141,3318.3,3318.2,0.99850458]
[1720017465275,1.71224104,3318.3,3318.2,0.99850458]
[1720017465487,0.52216141,3318.3,3318.2,0.99850458]
[1720017465871,3.75374251,3318.3,3318.2,0.99850458]
[1720017466205,1.115,3318.7,3318.5,0.5]
[1720017466411,3.75366256,3318.6,3318.5,0.5]
[1720017466707,3.7535913,3318.6,3318.5,0.5]
[1720017467012,3.7535913,3318.6,3318.4,0.99850458]
[1720017467171,3.7535913,3318.5,3318.4,0.99850458]
[1720017467508,3.7535913,3318.5,3318.4,5.49330458]
[1720017467709,1.71216579,3318.5,3318.4,5.49330458]
[1720017467908,1.71216579,3318.5,3318.4,6.15290239]
[1720017468706,1.71216579,3318.5,3318.4,6.09263504]
[1720017469303,3.0,3319.0,3318.8,0.5]
[1720017469505,3.75311303,3318.9,3318.8,0.5]
[1720017469683,3.75337591,3318.9,3318.8,1.49850458]
[1720017470697,4.4287135,3318.9,3318.5,1.49850458]
[1720017471021,3.75337591,3318.8,3318.7,0.5]
[1720017472631,0.67533759,3318.9,3318.7,0.5]
[1720017472815,3.7535774,3318.8,3318.7,0.5]
[1720017475919,0.52214152,3318.8,3318.7,0.5]
[1720017476382,3.75289897,3318.8,3318.7,0.5]
[1720017477224,3.75289897,3318.8,3318.7,1.49850458]
[1720017479109,0.52214152,3318.8,3318.7,1.49850458]
[1720017479312,3.23065339,3318.8,3318.7,1.49850458]
[1720017479593,3.0,3319.1,3318.7,1.49850458]
[1720017479793,0.52212233,3318.8,3318.7,1.49850458]
[1720017480018,3.75265836,3318.8,3318.7,1.49850458]
[1720017481415,3.75265836,3318.8,3318.7,0.99850458]
[1720017481595,3.75265836,3318.8,3318.5,0.99850458]
[1720017481797,3.75227179,3318.7,3318.5,1.49850458]
[1720017482106,3.75227179,3318.6,3318.5,1.49850458]
[1720017482707,3.75235488,3318.6,3318.5,1.49850458]
[1720017484999,0.9098,3319.0,3318.5,1.49850458]
[1720017485201,0.52215659,3318.6,3318.5,1.49850458]
[1720017485829,3.7526867,3318.6,3318.5,1.49850458]
[1720017486307,3.7526867,3318.6,3318.5,0.99850458]
[1720017486495,3.7526867,3318.6,3318.5,1.49850458]
[1720017487118,3.7526867,3318.6,3318.5,0.99850458]
[1720017487314,7.12795537,3318.6,3318.5,0.99850458]
[1720017488332,3.37526867,3318.6,3318.5,0.99850458]
[1720017488531,8.79277289,3318.6,3318.5,0.99850458]
[1720017490153,8.79277289,3318.6,3318.5,1.49850458]
[1720017491631,8.79097908,3318.6,3318.5,1.49850458]
[1720017491810,8.79097908,3318.6,3318.5,0.5]
[1720017492131,6.75152265,3318.6,3318.5,0.5]
[1720017492325,9.57758358,3318.6,3318.5,0.5]
[1720017492735,9.57758358,3318.6,3318.3,1.49850458]
[1720017492970,2.0248,3318.4,3317.7,0.5]
[1720017493237,1.115,3317.9,3317.6,0.99850458]
[1720017493414,6.75042968,3318.3,3317.4,0.5]
[1720017493415,1.115,3317.7,3317.4,0.5]
[1720017493613,3.0,3318.2,3317.2,1.49850458]
[1720017493614,1.115,3317.5,3317.2,1.49850458]
[1720017493824,3.75042968,3317.4,3317.2,1.49850458]
[1720017494041,3.75042968,3317.3,3317.2,1.49850458]
[1720017494246,3.74976221,3317.3,3317.2,1.49850458]
[1720017494410,3.74961257,3317.3,3317.2,0.99850458]
[1720017494609,6.15346957,3317.3,3317.2,0.99850458]
[1720017494918,6.15346957,3317.3,3317.0,1.10351698]
[1720017494919,8.77964281,3317.3,3317.0,1.10351698]
[1720017495112,1.115,3317.1,3317.0,1.10351698]
[1720017495421,1.115,3317.1,3317.0,0.0586724]
[1720017495422,7.86432817,3317.1,3317.0,0.0586724]
[1720017495630,4.86432817,3317.1,3317.0,0.0586724]
[1720017495829,6.74932817,3317.1,3317.0,0.0586724]
[1720017497246,5.47732611,3317.1,3317.0,0.0586724]
[1720017497538,2.47732611,3317.1,3317.0,0.0586724]
[1720017498045,2.89907708,3317.1,3317.0,0.0586724]
[1720017498240,5.89907708,3317.1,3317.0,0.0586724]
[1720017500147,4.18832467,3317.1,3317.0,0.0586724]
[1720017500346,2.89961769,3317.1,3317.0,0.0586724]
[1720017500551,5.89961769,3317.1,3317.0,0.0586724]
[1720017501253,4.18832467,3317.1,3317.0,0.0586724]
[1720017501451,5.89949375,3317.1,3317.0,0.0586724]
[1720017501744,6.48944313,3317.1,3317.0,0.0586724]
[1720017502328,5.89949375,3317.1,3317.0,0.0586724]
[1720017504149,5.37706932,3317.1,3317.0,0.0586724]
[1720017504351,2.89949607,3317.1,3317.0,0.0586724]
[1720017504558,4.18832467,3317.1,3317.0,0.0586724]
[1720017504754,5.3769284,3317.1,3317.0,0.0586724]
[1720017505275,4.18832467,3317.1,3317.0,0.0586724]
[1720017506346,1.18832467,3317.1,3317.0,0.0586724]
[1720017509295,9.79325167,3317.1,3317.0,0.0128224]
[1720017509589,29.02266944,3317.1,3317.0,0.0128224]
[1720017509789,26.69982144,3317.1,3317.0,0.0128224]
[1720017510094,23.43978544,3317.1,3317.0,0.0128224]
[1720017511117,21.72905984,3317.1,3317.0,0.0128224]
[1720017511263,24.62774539,3317.1,3317.0,0.0128224]
[1720017514307,3.0,3316.7,3315.9,0.99850458]
[1720017514469,3.0,3316.1,3315.5,3.35330458]
[1720017514664,3.0,3316.5,3316.2,0.99850458]
[1720017514886,0.52261902,3316.4,3315.9,0.99850458]
[1720017515166,3.0,3316.4,3315.9,0.99850458]
[1720017516083,3.0,3316.4,3316.3,0.99850458]
[1720017516279,3.0,3316.7,3316.3,0.99850458]
[1720017516480,3.0,3316.7,3316.5,0.99850458]
[1720017516999,3.0,3316.7,3316.6,0.5]
[1720017517202,3.0,3316.7,3316.5,0.99850458]
[1720017517405,3.0,3316.9,3316.6,0.5]
[1720017517971,3.0,3316.9,3316.7,0.99850458]
[1720017518164,7.32,3317.2,3316.8,0.5]
[1720017518165,3.0,3317.1,3316.8,0.5]
[1720017518396,0.52244801,3317.0,3316.8,2.4386]
[1720017518608,3.0,3317.1,3316.8,2.9386]
[1720017518783,0.52242253,3317.0,3316.8,2.9386]
[1720017519104,3.0,3317.1,3316.8,2.9386]
[1720017519309,0.52241727,3317.0,3316.8,2.9386]
[1720017519515,3.0,3317.1,3316.8,2.9386]
[1720017519801,0.52241224,3317.0,3316.8,2.9386]
[1720017520006,3.0,3317.1,3316.8,2.9386]
[1720017520194,0.52242144,3317.0,3316.8,2.9386]
[1720017520502,0.52242144,3316.9,3316.8,2.9386]
[1720017520910,3.0,3317.3,3317.0,0.5]
[1720017521205,0.52239883,3317.2,3316.9,0.99850458]
[1720017521518,0.52239883,3317.1,3316.9,0.99850458]
[1720017521703,3.0,3317.3,3316.9,0.99850458]
[1720017521704,0.52239883,3317.2,3316.9,0.99850458]
[1720017523182,1.17463871,3317.2,3316.7,0.99850458]
[1720017523505,0.52239883,3317.1,3316.7,0.99850458]
[1720017524095,0.52244933,3317.0,3316.7,0.99850458]
[1720017524299,0.52244933,3316.9,3316.7,0.99850458]
[1720017524478,0.52244933,3316.8,3316.7,0.99850458]
[1720017524681,0.52244933,3317.2,3316.7,0.99850458]
[1720017524885,1.17469426,3317.2,3316.7,0.99850458]
[1720017525102,0.52244933,3317.1,3316.7,0.99850458]
[1720017525308,0.52244933,3317.0,3316.7,0.99850458]
[1720017525516,0.52244933,3317.1,3316.7,0.99850458]
[1720017526591,0.52244933,3317.0,3316.8,0.5]
[1720017526817,0.52244933,3316.9,3316.8,0.5]
[1720017527207,0.52244933,3316.9,3316.8,2.9352]
[1720017527410,0.52240615,3316.9,3316.8,2.9352]
[1720017528128,0.52240615,3316.9,3316.8,3.32857046]
[1720017528321,7.32,3317.5,3316.9,2.3403]
[1720017528524,0.52234753,3317.4,3317.3,2.8403]
[1720017529527,0.52234753,3317.4,3317.3,3.83880458]
[1720017530098,7.32,3317.8,3317.3,3.83880458]
[1720017530298,0.52227335,3317.7,3317.4,0.94416149]
[1720017530632,7.32,3317.8,3317.4,0.94416149]
[1720017530801,7.32,3317.8,3317.7,0.99850458]
[1720017530997,12.2,3318.5,3318.0,0.5]
[1720017530998,7.32,3318.4,3318.0,0.5]
[1720017531219,1.70970967,3318.3,3318.0,0.5]
[1720017531532,1.70970967,3318.2,3318.1,0.99850458]
[1720017531726,0.52225839,3318.2,3318.1,0.99850458]
[1720017531892,0.52225839,3318.3,3318.1,0.99850458]
[1720017532092,1.70944767,3318.2,3318.1,0.99850458]
[1720017534048,3.0,3318.3,3318.2,0.5]
[1720017534245,4.70945929,3318.3,3318.2,0.5]
[1720017535201,3.52221363,3318.3,3318.2,0.5]
[1720017535663,7.32,3318.9,3318.7,0.99850458]
[1720017535808,15.2,3319.2,3318.7,0.99850458]
[1720017535809,1.70992292,3318.8,3318.7,1.49850458]
[1720017537050,1.71030959,3318.8,3318.7,1.49850458]
[1720017537230,1.18818207,3318.8,3318.7,1.49850458]
[1720017537429,1.18818207,3319.0,3318.7,1.49850458]
[1720017537605,0.52212873,3318.9,3318.7,1.49850458]
[1720017537805,1.18818207,3318.8,3318.7,1.49850458]
[1720017538201,1.18821804,3318.9,3318.7,1.49850458]
[1720017538406,1.18821804,3318.8,3318.7,1.49850458]
[1720017538608,1.18821804,3318.9,3318.7,1.49850458]
[1720017538808,4.71037461,3318.8,3318.5,0.90785618]
[1720017539047,4.71037461,3318.7,3318.5,0.90785618]
[1720017539335,1.71037461,3318.6,3318.5,0.90785618]
[1720017539502,1.18821804,3318.6,3318.5,0.90785618]
[1720017539709,1.90703984,3318.6,3318.5,0.90785618]
[1720017539912,1.90703984,3318.6,3318.0,0.90785618]
[1720017540165,0.52223046,3318.5,3318.0,0.90785618]
[1720017540465,1.18805233,3318.5,3318.0,0.90785618]
[1720017540607,1.18805233,3318.5,3318.2,0.5]
[1720017541548,1.67873974,3318.5,3318.2,0.5]
[1720017541733,0.49068741,3318.5,3318.2,0.5]
[1720017542718,0.49068741,3318.5,3318.0,0.90785618]
[1720017542919,1.7104777,3318.4,3318.0,0.90785618]
[1720017543249,0.49068741,3318.5,3318.0,0.90785618]
[1720017543453,0.52226086,3318.3,3318.0,0.90785618]
[1720017543654,1.71061427,3318.2,3318.0,0.90785618]
[1720017543944,1.71072966,3318.1,3317.8,0.90785618]
[1720017544196,0.52226086,3318.0,3317.8,0.90785618]
[1720017544366,0.52226086,3318.2,3317.8,0.90785618]
[1720017544558,3.0,3318.3,3317.8,0.90785618]
[1720017544559,2.06297074,3318.1,3317.8,0.90785618]
[1720017544843,0.52227673,3318.0,3317.8,0.90785618]
[1720017545922,0.35222609,3318.1,3317.8,0.90785618]
[1720017546121,0.52227915,3318.0,3317.8,0.90785618]
[1720017546311,0.90972967,3318.0,3317.8,0.90785618]
[1720017546515,0.52227915,3317.9,3317.8,0.90785618]
[1720017549143,0.52227915,3317.9,3317.5,3.16755618]
[1720017549344,0.52232332,3317.8,3317.5,3.16755618]
[1720017549640,0.52232332,3317.8,3317.6,0.5]
[1720017549846,0.52232354,3317.7,3317.6,0.5]
[1720017552446,0.52232332,3317.8,3317.6,0.79680324]
[1720017552615,0.52228093,3317.7,3317.6,0.79680324]
[1720017552821,1.04456186,3317.7,3317.6,0.79680324]
[1720017553138,1.04456186,3317.7,3317.6,0.5]
[1720017555550,1.04456186,3317.7,3317.5,3.16755618]
[1720017555723,0.52228093,3317.6,3317.5,3.16755618]
[1720017555927,0.52228093,3317.7,3317.5,3.16755618]
[1720017556231,0.52228093,3317.7,3317.5,0.90785618]
[1720017556232,0.52229591,3317.6,3317.5,0.90785618]
[1720017556422,0.15669002,3317.6,3317.5,0.90785618]
[1720017556618,0.52233962,3317.6,3317.5,0.90785618]
[1720017556820,0.52233962,3317.6,3317.3,0.90785618]
[1720017557059,0.52233962,3317.5,3317.3,0.90785618]
[1720017557248,0.52233962,3317.6,3317.3,0.90785618]
[1720017557455,1.18732222,3317.5,3317.3,0.90785618]
[1720017557666,0.52233962,3317.4,3317.3,0.90785618]
[1720017558022,0.52233962,3317.5,3317.3,0.90785618]
[1720017559065,0.45669439,3317.6,3317.3,0.90785618]
[1720017559277,3.0,3317.8,3317.4,0.5]
[1720017559278,1.70910506,3317.5,3317.4,0.5]
[1720017559483,1.70909472,3317.5,3317.4,0.5]
[1720017559786,1.70909472,3317.5,3317.4,2.9488]
[1720017559787,1.70916128,3317.5,3317.4,2.9488]
[1720017559997,0.52235243,3317.5,3317.4,2.9488]
[1720017560351,3.0,3318.0,3317.4,2.9488]
[1720017560552,1.70930507,3317.9,3317.7,0.90785618]
[1720017560895,4.032,3318.0,3317.7,0.90785618]
[1720017560896,1.70930507,3317.8,3317.7,0.90785618]
[1720017562383,1.70930507,3317.8,3317.3,0.5]
[1720017562603,4.032,3318.0,3317.3,0.5]
[1720017562604,1.70957348,3317.7,3317.3,0.5]
[1720017562895,6.74593517,3317.6,3317.0,0.90785618]
[1720017563064,3.74593517,3317.5,3317.0,0.90785618]
[1720017563256,3.0,3317.6,3317.0,1.40785618]
[1720017563257,6.74593517,3317.4,3317.0,1.40785618]
[1720017563472,1.70957348,3317.3,3317.0,1.40785618]
[1720017563661,1.70957348,3317.2,3317.0,1.40785618]
[1720017563846,1.70957348,3317.1,3317.0,1.40785618]
[1720017564407,1.70957348,3317.1,3317.0,3.87835618]
[1720017564612,1.70957348,3317.1,3317.0,4.2661918]
[1720017564893,0.52234993,3317.1,3317.0,4.2661918]
[1720017565092,0.52234993,3317.8,3317.4,0.5]
[1720017565392,3.22255162,3317.7,3317.4,0.5]
[1720017565559,4.70919422,3317.6,3317.4,0.5]
[1720017565745,3.0,3317.6,3317.4,0.5]
[1720017565942,1.70903465,3317.5,3317.4,0.5]
[1720017567792,1.70903465,3317.5,3317.2,1.40785618]
[1720017567973,3.0,3317.9,3317.2,1.40785618]
[1720017567974,1.70903465,3317.4,3317.2,1.40785618]
[1720017568167,1.70903465,3317.3,3317.2,1.40785618]
[1720017569192,0.6,3317.8,3317.2,1.40785618]
[1720017569369,0.52236552,3317.3,3317.2,1.40785618]
[1720017569569,0.52236105,3317.3,3317.2,1.40785618]
[1720017569767,1.70912721,3317.3,3317.2,1.40785618]
[1720017572388,1.70910263,3317.3,3317.2,1.40785618]
[1720017573293,1.70910263,3317.3,3317.2,0.90785618]
[1720017573995,1.88001289,3317.3,3317.0,0.90785618]
[1720017574195,1.70910263,3317.2,3317.0,0.90785618]
[1720017574372,3.7443541,3317.1,3317.0,0.90785618]
[1720017574574,6.7443541,3317.1,3317.0,0.90785618]
[1720017574770,7.43588054,3317.1,3317.0,0.90785618]
[1720017575281,5.40062907,3317.1,3317.0,0.90785618]
[1720017575595,5.40078188,3317.1,3317.0,0.90785618]
[1720017575799,4.70925544,3317.1,3317.0,0.90785618]
[1720017577595,7.70925544,3317.1,3317.0,0.90785618]
[1720017577891,9.74458028,3317.1,3316.8,0.5]
[1720017578062,6.74458028,3317.0,3316.8,0.5]
[1720017578262,3.3581715,3316.9,3316.8,0.5]
[1720017578595,4.70925544,3316.9,3316.8,0.5]
[1720017578794,1.70955648,3316.9,3316.8,0.5]
[1720017580097,1.70955648,3316.9,3316.8,1.40785618]
[1720017581693,1.70955648,3316.9,3316.8,3.69345618]
[1720017582065,1.1873455,3316.9,3316.8,3.69345618]
[1720017582399,1.70975979,3316.9,3316.8,4.0628018]
[1720017582623,3.0,3317.2,3317.1,0.90785618]
[1720017582774,4.70980127,3317.2,3317.1,0.90785618]
[1720017582972,4.70980127,3317.2,3317.1,1.40785618]
[1720017583205,1.70980127,3317.2,3317.1,0.90785618]
[1720017584497,0.99340168,3317.2,3316.9,0.90785618]
[1720017584711,1.70980127,3317.1,3316.9,0.90785618]
[1720017584890,1.70980127,3317.0,3316.9,0.90785618]
[1720017585207,3.0,3317.1,3316.9,0.90785618]
[1720017585382,0.52243162,3317.0,3316.9,0.90785618]
[1720017585776,1.7102086,3317.0,3316.9,0.90785618]
[1720017588602,1.71036661,3317.0,3316.9,0.90785618]
[1720017590782,0.52243162,3317.0,3316.9,0.90785618]
[1720017590982,3.74814808,3317.0,3316.9,0.90785618]
[1720017591510,6.74814808,3317.0,3316.9,0.90785618]
[1720017591807,6.2259308,3317.0,3316.9,0.90785618]
[1720017591974,9.97430031,3317.0,3316.9,0.90785618]
[1720017592170,9.97430031,3317.0,3316.8,0.5]
[1720017592375,3.74837414,3316.9,3316.8,0.5]
[1720017592606,6.74837414,3316.9,3316.8,0.5]
[1720017595102,3.0,3316.9,3316.8,0.5]
[1720017595298,6.74840251,3316.9,3316.8,0.5]
[1720017595728,6.74842753,3316.9,3316.8,0.5]
[1720017596095,6.74842753,3316.9,3316.6,0.90785618]
[1720017596290,3.0,3316.9,3316.8,0.5]
[1720017596519,8.14528639,3316.9,3316.8,0.5]
[1720017597408,6.74810755,3316.9,3316.8,1.40785618]
[1720017598317,6.74767939,3316.9,3316.8,1.40785618]
[1720017598819,6.74767941,3316.9,3316.8,1.40785618]
[1720017600091,6.74767941,3316.9,3316.8,0.90785618]
[1720017600303,7.72244735,3316.9,3316.8,1.40785618]
[1720017600539,3.0,3316.7,3316.2,0.90785618]
[1720017600725,3.0,3316.2,3315.9,0.90785618]
[1720017600880,3.0,3316.2,3315.8,0.5]
[1720017600881,3.74608625,3316.1,3315.8,0.5]
[1720017601086,3.22348261,3316.0,3315.6,1.40785618]
[1720017601289,0.52260364,3315.9,3315.6,1.40785618]
[1720017601514,3.22348261,3315.8,3315.6,1.40785618]
[1720017601845,0.52260364,3315.7,3315.6,1.40785618]
[1720017602115,1.70989614,3315.7,3315.6,1.40785618]
[1720017603081,1.70989614,3315.7,3315.6,0.90785618]
[1720017603504,4.55888575,3315.7,3315.2,0.5]
[1720017603783,3.74570498,3315.6,3315.2,0.5]
[1720017604007,1.70995714,3315.5,3315.4,0.5]
[1720017604211,3.74591924,3315.5,3315.4,0.5]
[1720017604603,4.70995714,3315.5,3315.2,0.90785618]
[1720017604923,1.70995714,3315.4,3315.2,0.90785618]
[1720017605088,3.0,3315.6,3315.2,3.88657885]
[1720017605089,1.70962921,3315.3,3315.2,3.88657885]
[1720017605291,3.0,3315.7,3315.3,0.90785618]
[1720017605489,1.70951542,3315.6,3315.3,3.32625618]
[1720017605725,3.0,3315.7,3315.3,3.32625618]
[1720017605726,1.70951542,3315.5,3315.3,3.32625618]
[1720017605892,7.32,3315.8,3315.7,0.90785618]
[1720017606093,9.02959048,3315.8,3315.7,0.90785618]
[1720017606396,7.32,3315.8,3315.7,3.22005618]
[1720017607205,7.32,3315.8,3315.7,3.72005618]
[1720017607906,7.47,3315.8,3315.7,3.72005618]
[1720017608114,0.15,3315.8,3315.7,4.0920618]
[1720017608518,7.32,3317.2,3316.8,0.90785618]
[1720017608706,3.74662507,3317.1,3316.9,0.90785618]
[1720017608889,3.0,3317.4,3316.9,0.90785618]
[1720017608890,4.12128758,3317.0,3316.9,0.90785618]
[1720017609095,2.08462379,3317.0,3316.9,0.90785618]
[1720017609324,0.52247941,3317.0,3316.9,0.90785618]
[1720017609521,3.7464606,3317.0,3316.9,0.90785618]
[1720017609899,6.7464606,3317.0,3316.9,0.90785618]
[1720017610108,1.70996128,3317.0,3316.9,0.90785618]
[1720017610424,1.70996128,3317.0,3316.4,0.90785618]
[1720017610425,6.7461222,3317.0,3316.4,0.90785618]
[1720017610623,6.91711833,3316.9,3316.4,0.90785618]
[1720017610824,1.70982119,3316.8,3316.4,0.90785618]
[1720017611133,1.70982119,3316.7,3316.4,0.90785618]
[1720017611443,0.17099613,3316.9,3316.2,2.7651]
[1720017611444,1.70982119,3316.6,3316.2,0.5]
[1720017611645,1.70982119,3316.5,3316.2,0.5]
[1720017611794,1.70982119,3316.4,3316.2,0.5]
[1720017611996,1.70982119,3316.3,3316.0,1.40785618]
[1720017612314,3.0,3316.7,3316.0,1.40785618]
[1720017612315,1.70982119,3316.2,3316.0,1.40785618]
[1720017612628,3.0,3316.7,3316.0,1.40785618]
[1720017612629,1.70982119,3316.1,3316.0,1.40785618]
[1720017613745,1.7097137,3316.1,3316.0,1.40785618]
[1720017615299,1.7097137,3316.1,3316.0,0.90785618]
[1720017615499,1.7097137,3316.1,3316.0,1.40785618]
[1720017616997,3.0,3316.4,3316.2,0.5]